bitfinex-derivatives/quotes_ETHF0:USTF0_20250929
["timestamp","ask_amount","ask_price","bid_price","bid_amount"]
[1759143547897,1.20460216,4119.5,4119.4,0.6191758]
[1759143548403,1.28570216,4119.5,4119.4,0.1938758]
[1759143549104,1.28570216,4119.5,4119.4,5.8e-06]
[1759143551899,1.28570216,4119.5,4119.4,0.3279058]
[1759143552406,1.28570216,4119.5,4119.4,5.8e-06]
[1759143552808,0.87280216,4119.5,4119.4,5.8e-06]
[1759143553007,0.95390216,4119.5,4119.4,5.8e-06]
[1759143557102,0.86239,4119.1,4119.0,0.2682]
[1759143557306,4.38459,4119.1,4119.0,0.2682]
[1759143557500,4.38459,4119.1,4119.0,0.244]
[1759143558206,4.38459,4119.1,4119.0,0.24659027]
[1759143561302,0.1308,4118.5,4118.1,1.73934242]
[1759143561508,0.74,4118.2,4118.1,0.5456]
[1759143562006,1.17689,4118.2,4118.1,0.5456]
[1759143562309,1.22294,4118.5,4117.9,0.02428452]
[1759143562310,1.30771,4118.0,4117.9,1.02938452]
[1759143562502,1.17691,4118.0,4117.9,1.03111915]
[1759143563711,1.30771,4118.0,4117.9,0.02601915]
[1759143564010,0.43705,4116.7,4116.6,1.73934242]
[1759143564309,1.34437,4116.5,4116.4,0.7588]
[1759143564608,1.21307,4116.5,4116.4,0.7588]
[1759143564910,1.21605543,4116.5,4116.4,0.76077503]
[1759143565298,1.21605543,4116.5,4116.4,0.42867503]
[1759143565504,1.21605543,4116.5,4116.4,0.76077503]
[1759143566106,1.34735543,4116.5,4116.4,0.76077503]
[1759143566302,1.34735543,4116.5,4116.4,0.21687503]
[1759143566599,1.34735543,4116.5,4116.4,0.00197503]
[1759143567202,1.34735543,4116.5,4115.6,0.017]
[1759143567203,0.88155,4115.7,4115.6,0.2319]
[1759143567412,1.21315,4115.7,4115.6,0.564]
[1759143567619,1.21319,4115.3,4115.2,0.7588]
[1759143568202,1.21319,4115.3,4115.2,0.76152341]
[1759143568398,1.21319,4115.3,4115.2,0.21762341]
[1759143568612,1.21319,4115.3,4115.2,0.00272341]
[1759143571716,1.21319,4115.3,4115.2,0.54972341]
[1759143572010,1.21319,4115.3,4115.2,0.76152341]
[1759143572304,0.4629,4116.0,4115.5,0.1308]
[1759143572512,0.776,4116.0,4115.9,0.7588]
[1759143573215,1.21312,4116.0,4115.9,0.7588]
[1759143573513,0.65582,4116.0,4115.9,0.7588]
[1759143574212,0.98742,4116.0,4115.9,0.7588]
[1759143574916,0.43712,4116.0,4115.9,0.7588]
[1759143577209,0.65582,4116.0,4115.9,0.7588]
[1759143577709,1.21312,4116.0,4115.9,1.0058]
[1759143578114,0.65582,4116.0,4115.9,1.0058]
[1759143578416,0.43712,4116.0,4115.9,1.0058]
[1759143578609,0.43712,4116.0,4115.9,6.0058]
[1759143579511,0.43712,4116.0,4115.9,1.0058]
[1759143580819,3.2078,4116.1,4116.0,0.8896]
[1759143581217,3.64491,4116.1,4116.0,0.8896]
[1759143581619,4.19521,4116.1,4116.0,0.8896]
[1759143582515,0.43709,4116.3,4116.0,0.5575]
[1759143582721,0.43709,4116.3,4116.2,0.7588]
[1759143583020,0.98739,4116.3,4116.2,0.7588]
[1759143583425,1.21309,4116.3,4116.2,0.7588]
[1759143587824,1.21309,4116.3,4116.2,1.0048]
[1759143588824,0.43709,4116.3,4116.2,1.0048]
[1759143589117,0.98739,4116.3,4116.2,1.0048]
[1759143589324,1.21309,4116.3,4116.2,1.0048]
[1759143589918,0.43709,4116.3,4116.2,0.6727]
[1759143590118,1.21309,4116.3,4116.2,0.6727]
[1759143590817,1.21309,4116.3,4116.2,0.4609]
[1759143592517,1.21309,4116.3,4116.2,0.793]
[1759143593122,1.21309,4116.3,4116.2,0.547]
[1759143593323,1.21309,4116.3,4116.2,1.0048]
[1759143594619,0.13428543,4116.5,4115.7,3.2078]
[1759143594620,0.5444,4115.8,4115.7,4.39504]
[1759143594819,1.19788,4116.4,4116.3,0.437]
[1759143595020,1.19788,4116.4,4116.3,0.9961]
[1759143596029,0.43708,4116.4,4116.3,0.9961]
[1759143596334,0.44005543,4116.5,4116.4,0.7501]
[1759143596630,0.98445543,4116.5,4116.4,0.7501]
[1759143596822,0.00298543,4116.5,4116.4,0.7501]
[1759143597022,0.44005543,4116.5,4116.4,0.7501]
[1759143598024,0.00298543,4116.5,4116.4,0.7501]
[1759143598223,0.44005543,4116.5,4116.4,0.7501]
[1759143598525,0.98445543,4116.5,4116.4,0.7501]
[1759143598923,0.54738543,4116.5,4116.4,0.7501]
[1759143599122,0.98445543,4116.5,4116.4,0.7501]
[1759143599633,0.00298543,4116.5,4116.4,0.7501]
[1759143600430,1.20085543,4116.5,4116.4,0.7501]
[1759143600635,1.20085543,4116.5,4116.3,0.246]
[1759143600636,1.19788,4116.4,4116.3,0.246]
[1759143601029,0.86691,4116.1,4116.0,0.5402]
[1759143601225,1.19791,4116.1,4116.0,0.9961]
[1759143601833,0.7608,4116.1,4116.0,0.9961]
[1759143602024,0.13208543,4116.5,4116.0,0.8088]
[1759143602226,0.76808,4116.4,4116.3,0.7501]
[1759143602425,0.98148,4116.4,4116.3,0.7501]
[1759143602837,0.5444,4116.4,4116.3,0.7501]
[1759143603130,0.7608,4116.4,4116.3,0.7501]
[1759143603326,0.2134,4116.1,4116.0,0.5591]
[1759143603528,1.19791,4116.1,4116.0,0.5402]
[1759143603824,1.19791,4116.1,4116.0,0.7862]
[1759143604024,1.19791,4116.1,4116.0,0.9961]
[1759143604223,1.19791,4116.1,4115.7,5.26024242]
[1759143604224,0.43714,4115.9,4115.7,5.26024242]
[1759143604439,1.19794,4115.9,4115.8,0.4731]
[1759143604631,1.19794,4115.9,4115.8,0.246]
[1759143607028,0.7608,4115.9,4115.8,0.4731]
[1759143607334,1.19793,4115.9,4115.8,0.7862]
[1759143607733,0.7608,4115.9,4115.8,0.7862]
[1759143607933,0.7608,4115.9,4115.8,0.9961]
[1759143608439,1.19793,4115.9,4115.8,0.9961]
[1759143609142,0.7608,4115.9,4115.8,1.43324]
[1759143609640,0.7608,4115.9,4115.8,0.9961]
[1759143610136,1.19793,4115.9,4115.8,0.7862]
[1759143610332,1.19793,4115.9,4115.8,0.246]
[1759143610730,1.19793,4115.9,4115.8,0.4731]
[1759143612037,0.7608,4115.9,4115.8,0.4731]
[1759143612338,0.2134,4115.9,4115.8,1.43324]
[1759143612540,3.2078,4116.0,4115.9,1.18723]
[1759143613134,3.9686,4116.0,4115.9,0.9961]
[1759143613333,3.9686,4116.0,4115.9,1.43323]
[1759143613534,3.9686,4116.0,4115.9,0.9961]
[1759143613837,4.40572,4116.0,4115.9,0.9961]
[1759143614040,3.9686,4116.0,4115.9,1.43323]
[1759143614340,3.9686,4116.0,4115.9,0.9961]
[1759143614640,3.9686,4116.0,4115.9,1.43323]
[1759143614947,3.9686,4116.0,4115.9,0.9961]
[1759143615536,4.40572,4116.0,4115.9,0.9961]
[1759143615941,3.9686,4116.0,4115.9,0.9961]
[1759143616442,3.9686,4116.0,4115.9,1.43323]
[1759143616936,3.9686,4116.0,4115.9,1.23315242]
[1759143616937,0.1259,4116.0,4115.9,1.23315242]
[1759143617142,0.6712,4116.0,4115.9,0.83893]
[1759143617338,0.8809,4116.0,4115.9,0.83893]
[1759143618038,0.43713,4115.9,4115.6,3.64495]
[1759143618343,0.755,4115.8,4115.7,0.3239]
[1759143618641,1.19215,4115.7,4115.6,3.2078]
[1759143618844,1.19215,4115.7,4115.6,0.246]
[1759143619742,0.755,4115.7,4115.6,0.76106]
[1759143621347,0.755,4115.7,4115.6,0.3239]
[1759143622348,0.755,4115.7,4115.6,0.76106]
[1759143622746,0.755,4115.7,4115.6,0.246]
[1759143623041,1.19215,4115.7,4115.4,0.43718]
[1759143623343,0.1259,4116.0,4115.3,0.0242]
[1759143623344,1.19218,4115.4,4115.3,0.0242]
[1759143623540,1.19218,4115.4,4115.3,0.2702]
[1759143623738,1.19218,4115.4,4115.3,0.246]
[1759143624543,1.19019,4115.3,4115.2,0.00272341]
[1759143624743,1.19026,4114.7,4114.6,3.2078]
[1759143625052,1.19026,4114.7,4114.6,3.4538]
[1759143625433,0.753,4114.7,4114.6,3.5334]
[1759143625645,0.753,4114.7,4114.6,3.53604903]
[1759143625847,0.753,4114.7,4114.6,3.45644903]
[1759143626042,1.19026,4114.7,4114.6,3.45644903]
[1759143626645,1.19026,4114.7,4114.6,3.21044903]
[1759143626841,1.19026,4114.7,4114.6,3.45644903]
[1759143627843,1.19026,4114.7,4114.6,0.00264903]
[1759143628047,6.19026,4114.7,4114.6,0.00264903]
[1759143628250,6.19026,4114.7,4114.6,4.903e-05]
[1759143629745,1.19026,4114.7,4114.6,4.903e-05]
[1759143637650,6.19026,4114.7,4114.6,4.903e-05]
[1759143638860,6.19026,4114.7,4113.7,0.1]
[1759143638861,1.19035,4113.8,4113.7,0.1]
[1759143639952,0.753,4113.8,4113.7,0.2252813]
[1759143640259,0.3374,4113.8,4113.7,5.4246813]
[1759143640461,0.3374,4113.8,4113.7,0.8620413]
[1759143640755,0.753,4113.8,4113.7,0.3479813]
[1759143641452,0.3374,4113.8,4113.7,5.8620413]
[1759143641657,0.3374,4113.9,4113.7,5.3479813]
[1759143641853,0.77474,4113.9,4113.8,0.3221]
[1759143642050,0.98544,4113.9,4113.8,0.2454]
[1759143642361,1.19034,4113.9,4113.8,0.2454]
[1759143643253,0.753,4113.9,4113.8,0.2454]
[1759143643458,0.3374,4113.9,4113.8,5.75945]
[1759143644662,0.8827,4114.5,4114.4,0.1227]
[1759143644851,0.8827,4114.5,4114.4,0.3687]
[1759143645365,1.31998,4114.5,4114.4,0.3687]
[1759143647163,1.31998,4114.5,4114.4,0.246]
[1759143648161,1.19032,4114.1,4114.0,3.2078]
[1759143648364,1.19032,4114.1,4114.0,3.4538]
[1759143648563,1.19035,4113.8,4113.7,0.0025813]
[1759143648760,1.19035,4113.8,4113.7,0.2495813]
[1759143650656,1.19035,4113.8,4113.7,0.0025813]
[1759143650858,1.19035,4113.8,4113.7,0.2495813]
[1759143653563,0.753,4113.8,4113.7,0.3722813]
[1759143653869,1.19035,4113.8,4113.7,0.3722813]
[1759143654367,1.19035,4113.8,4113.7,0.2495813]
[1759143656567,1.19035,4113.8,4113.7,0.0025813]
[1759143656776,1.21211,4113.3,4113.2,0.246]
[1759143657579,1.34064,4113.0,4112.9,3.2078]
[1759143657775,1.34064,4113.0,4112.9,3.4548]
[1759143657964,1.34064,4113.0,4112.9,3.45693103]
[1759143658470,1.34064,4113.0,4112.9,3.20993103]
[1759143658679,1.34064,4113.0,4112.9,3.45593103]
[1759143659373,1.34064,4113.0,4112.9,3.58593103]
[1759143659764,0.9032,4113.0,4112.9,3.58593103]
[1759143660071,0.9032,4113.0,4112.9,3.20993103]
[1759143660373,1.34064,4113.0,4112.9,0.24813103]
[1759143660767,0.9032,4113.0,4112.9,0.24813103]
[1759143660970,0.9032,4113.0,4112.9,0.50813103]
[1759143661472,0.678,4113.0,4112.9,0.50813103]
[1759143661672,0.678,4113.0,4112.9,0.58933103]
[1759143661867,0.4566,4113.0,4112.9,0.58933103]
[1759143662063,0.00293064,4113.3,4113.0,0.43743]
[1759143662267,0.00293064,4113.3,4112.9,8.79713103]
[1759143662268,0.00293064,4113.3,4113.2,0.3412]
[1759143662662,0.33103064,4113.3,4113.2,0.77862]
[1759143664169,0.33103064,4113.3,4113.2,1.02462]
[1759143664365,0.77763064,4113.3,4112.9,3.20993103]
[1759143664561,0.3281,4113.0,4112.9,3.98858103]
[1759143664765,0.33103064,4113.3,4113.2,0.77862]
[1759143666374,0.1285,4113.0,4112.9,3.20993103]
[1759143666566,0.5751,4113.0,4112.9,3.20993103]
[1759143666772,0.678,4113.0,4112.9,4.15338103]
[1759143666971,0.678,4113.0,4112.9,4.23458103]
[1759143667172,0.678,4113.0,4112.9,4.15338103]
[1759143667368,0.4566,4113.0,4112.9,4.15338103]
[1759143667571,0.4566,4113.0,4112.9,4.23458103]
[1759143668682,0.55243064,4113.3,4113.2,0.69742]
[1759143668973,0.33103064,4113.3,4113.2,1.02462]
[1759143669180,0.55243064,4113.3,4113.2,0.94342]
[1759143669367,0.1297,4114.0,4113.2,0.94342]
[1759143669368,0.5495,4113.9,4113.8,0.26]
[1759143669567,0.5495,4113.9,4113.8,0.506]
[1759143669773,0.7747,4113.9,4113.8,0.246]
[1759143670371,0.7772757,4113.9,4113.8,0.376]
[1759143670571,0.7772757,4113.9,4113.8,0.94336]
[1759143671467,0.3306757,4113.9,4113.8,1.02456]
[1759143671969,0.0025757,4113.9,4113.8,1.02456]
[1759143672174,0.3306757,4113.9,4113.8,1.02456]
[1759143673669,0.0025757,4113.9,4113.8,1.02456]
[1759143676180,0.0025757,4113.9,4113.8,6.02456]
[1759143676676,0.2056,4114.9,4114.8,0.66035]
[1759143676871,0.2056,4115.0,4114.9,1.20554]
[1759143677679,0.0020793,4115.0,4114.9,1.20554]
[1759143677979,0.0020793,4115.0,4114.9,1.40246555]
[1759143680279,3.4134,4115.7,4115.6,1.20546]
[1759143680484,3.6398,4115.7,4115.6,1.45146]
[1759143680877,3.9715,4115.7,4115.6,1.45146]
[1759143681186,3.97414465,4115.7,4115.6,0.6749]
[1759143681377,3.97414465,4115.7,4115.6,0.246]
[1759143682174,0.8951,4115.0,4114.9,0.2058]
[1759143682370,0.8951,4115.0,4114.7,2.18090164]
[1759143682371,0.8951,4115.0,4114.7,0.43726]
[1759143682572,0.3317,4114.9,4114.4,0.3394]
[1759143682771,0.3317,4114.9,4114.8,3.4538]
[1759143682772,0.7637,4114.9,4114.8,3.4538]
[1759143682973,0.1314,4114.5,4114.2,3.64511]
[1759143683172,0.1314,4114.5,4114.2,4.41341]
[1759143683173,0.7637,4114.3,4114.2,4.41341]
[1759143683381,0.7637,4114.3,4114.2,3.8827]
[1759143683572,0.7637,4114.3,4114.2,3.6596]
[1759143684980,0.7637,4114.3,4114.2,3.4136]
[1759143685273,0.7637,4114.3,4114.2,3.6596]
[1759143685480,0.7637,4114.3,4114.2,3.2078]
[1759143685682,0.7637,4114.3,4114.2,3.6671]
[1759143687977,0.7637,4114.3,4114.2,3.8898]
[1759143688180,0.1314,4114.5,4114.2,4.65941]
[1759143688487,0.3349,4114.4,4114.3,0.7683]
[1759143688675,0.3349,4114.4,4114.3,1.0143]
[1759143689374,0.1314,4115.0,4114.3,0.682]
[1759143689681,0.7692,4114.9,4114.8,0.7683]
[1759143689882,0.7692,4114.9,4114.8,0.682]
[1759143690083,3.2078,4115.1,4114.8,0.682]
[1759143690084,3.2078,4115.1,4115.0,0.7683]
[1759143690276,3.2078,4115.1,4115.0,1.0143]
[1759143690472,0.3349,4115.1,4115.0,1.45153]
[1759143690677,0.1314,4115.5,4115.0,1.45153]
[1759143690678,0.5564,4115.4,4115.3,0.7683]
[1759143690877,0.7692,4115.4,4115.3,1.0143]
[1759143691380,0.7692,4115.4,4115.3,1.4515]
[1759143691888,0.5564,4115.4,4115.3,1.4515]
[1759143692585,3.4293,4115.6,4115.5,0.7683]
[1759143692979,0.7692,4115.6,4115.5,0.7683]
[1759143693380,0.1285,4116.0,4115.6,0.43717]
[1759143693580,0.3349,4115.9,4115.6,1.45147]
[1759143694081,0.2215,4116.2,4116.1,0.43711]
[1759143694281,0.5564,4116.2,4116.1,1.45141]
[1759143694990,0.1253,4116.5,4116.4,0.7683]
[1759143694991,0.5564,4116.5,4116.4,0.7683]
[1759143695289,0.89652198,4116.5,4116.4,1.01836983]
[1759143696387,0.55842198,4116.5,4116.4,1.01836983]
[1759143696982,0.00202198,4116.5,4116.4,1.01836983]
[1759143697187,0.33692198,4116.5,4116.4,4.22616983]
[1759143697386,0.89652198,4116.5,4116.4,4.22616983]
[1759143697780,0.77122198,4116.5,4116.4,4.22616983]
[1759143698488,0.00202198,4116.5,4116.4,4.22616983]
[1759143700593,0.00202198,4116.5,4116.4,4.66324983]
[1759143703092,0.8945,4117.0,4116.9,0.2133]
[1759143703298,0.8945,4117.0,4116.9,3.4538]
[1759143703596,0.4602,4117.0,4116.9,4.32683]
[1759143703795,0.6817,4117.0,4116.9,4.65913]
[1759143703997,0.68480789,4117.0,4116.9,4.65913]
[1759143704192,0.89760789,4117.0,4116.9,4.65913]
[1759143704392,0.89760789,4117.0,4116.9,4.32683]
[1759143704800,0.89760789,4117.0,4116.9,3.8898]
[1759143706304,0.89760789,4117.0,4116.9,3.2078]
[1759143706597,0.89760789,4117.0,4116.4,3.42416983]
[1759143706598,0.8945,4116.5,4116.4,3.42416983]
[1759143706800,0.8945,4116.5,4116.4,3.67016983]
[1759143708906,0.8945,4116.5,4116.4,3.89286983]
[1759143709404,0.8945,4116.5,4116.4,4.22516983]
[1759143711713,0.8945,4116.5,4116.4,4.66224983]
[1759143711910,0.00310789,4117.0,4116.9,0.76933]
[1759143712214,0.00310789,4117.0,4116.9,1.45133]
[1759143712413,0.33800789,4117.0,4116.9,1.45133]
[1759143712611,0.55950789,4117.0,4116.9,1.45133]
[1759143713013,0.00310789,4117.0,4116.9,1.45133]
[1759143713212,0.00310789,4117.0,4116.9,4.65913]
[1759143713413,0.33800789,4117.0,4116.9,4.65913]
[1759143718319,0.00310789,4117.0,4116.9,4.65913]
[1759143720115,0.87980789,4117.0,4116.9,4.65913]
[1759143721420,0.87980789,4117.0,4116.9,3.2078]
[1759143721716,5.87980789,4117.0,4116.9,0.246]
[1759143721922,5.87980789,4117.0,4116.9,0.4697]
[1759143723022,6.31682789,4117.0,4116.9,0.246]
[1759143723528,5.87980789,4117.0,4116.9,0.246]
[1759143724227,5.87980789,4117.0,4116.7,0.0242]
[1759143724424,1.18443,4116.9,4116.8,0.246]
[1759143724826,0.43707,4116.5,4116.4,0.00306983]
[1759143725127,4.52157,4116.5,4116.4,0.00306983]
[1759143725426,9.0845,4116.5,4115.9,3.2078]
[1759143725631,0.7474,4115.4,4115.3,3.4315]
[1759143725926,0.7474,4115.4,4115.3,3.8843]
[1759143726324,0.7474,4115.4,4115.3,3.6373]
[1759143726630,0.2232,4115.9,4115.8,0.4295]
[1759143726824,0.5301,4115.9,4115.8,1.0039]
[1759143727421,0.7474,4115.9,4115.8,0.247]
[1759143727629,0.7474,4115.9,4115.3,3.20962137]
[1759143727630,1.18459,4115.4,4115.3,3.20962137]
[1759143727832,1.18459,4115.4,4115.3,3.45662137]
[1759143728332,6.18459,4115.4,4115.3,0.24882137]
[1759143729420,6.18459,4115.4,4114.5,0.248]
[1759143729421,0.66047,4114.6,4114.5,0.248]
[1759143729733,0.7474,4114.6,4114.5,0.495]
[1759143730227,0.7474,4114.6,4114.5,0.248]
[1759143730421,0.7474,4114.6,4114.5,0.27368569]
[1759143731033,0.7474,4114.6,4114.5,1.03058569]
[1759143731432,0.7474,4114.6,4114.5,1.00628569]
[1759143732531,0.5301,4114.6,4114.5,1.00628569]
[1759143733433,0.317,4114.9,4114.5,0.67888569]
[1759143733631,1.29963,4115.0,4114.9,0.4222]
[1759143733831,1.29963,4115.0,4114.9,0.6692]
[1759143734031,1.29963,4115.0,4114.9,0.9778]
[1759143734832,0.8624,4115.0,4114.9,0.9778]
[1759143735037,0.8624,4115.0,4114.9,0.6692]
[1759143735232,1.29963,4115.0,4114.9,0.6692]
[1759143735428,1.29963,4115.0,4114.9,0.458]
[1759143735836,1.29963,4115.0,4114.9,0.6692]
[1759143736038,1.29963,4115.0,4114.9,0.9778]
[1759143737342,1.29963,4115.0,4114.9,0.6692]
[1759143738449,1.29963,4115.0,4114.9,0.458]
[1759143738940,1.29963,4115.0,4114.9,0.6692]
[1759143739141,1.29963,4115.0,4114.9,0.9778]
[1759143739841,0.206,4115.4,4115.3,0.211]
[1759143740048,0.523,4115.4,4115.3,0.9768]
[1759143740239,1.17029,4115.4,4114.9,0.3086]
[1759143740441,0.8579,4115.0,4114.9,0.4222]
[1759143740741,0.8579,4115.0,4114.9,0.6692]
[1759143741742,0.8579,4115.0,4114.9,0.9778]
[1759143743248,1.29513,4115.0,4114.9,0.457]
[1759143743545,0.7331,4114.7,4114.6,0.211]
[1759143743735,1.17036,4114.7,4114.6,0.246]
[1759143744340,0.87287,4114.6,4114.5,0.00238569]
[1759143744545,1.20257,4114.6,4114.5,0.24838569]
[1759143745444,1.20257,4114.6,4114.5,0.00238569]
[1759143745741,1.20257,4114.6,4114.5,0.24838569]
[1759143746136,1.20257,4114.6,4114.5,0.00238569]
[1759143746338,1.20257,4114.6,4114.5,0.24838569]
[1759143747148,1.20257,4114.6,4114.5,0.00238569]
[1759143749645,0.7653,4114.6,4114.5,1.18396569]
[1759143749852,1.20257,4114.6,4114.5,0.74668569]
[1759143750049,1.20257,4114.6,4114.5,0.24838569]
[1759143753858,0.7653,4114.6,4114.5,0.68018569]
[1759143754060,0.5554,4114.6,4114.5,1.42996569]
[1759143754660,0.5554,4114.6,4114.5,0.99268569]
[1759143755253,1.20257,4114.6,4114.5,0.99268569]
[1759143755453,1.20257,4114.6,4114.5,0.24838569]
[1759143755749,0.7653,4114.6,4114.5,0.68018569]
[1759143755953,0.7653,4114.6,4114.5,0.99268569]
[1759143756148,1.20257,4114.6,4114.5,0.99268569]
[1759143756350,1.20257,4114.6,4114.5,0.68018569]
[1759143759159,3.2078,4114.9,4114.8,0.43725]
[1759143759365,3.2078,4114.9,4114.8,0.7443]
[1759143759366,3.5375,4114.9,4114.8,0.7443]
[1759143759558,3.5375,4114.9,4114.8,1.18155]
[1759143759762,3.5375,4114.9,4114.5,0.36698569]
[1759143759763,0.9926,4115.3,4115.2,0.4318]
[1759143759961,1.2025,4115.3,4115.2,0.6788]
[1759143760156,1.2025,4115.3,4115.2,0.9913]
[1759143760356,0.7653,4115.3,4115.2,0.9913]
[1759143760663,0.9926,4115.3,4115.2,0.9913]
[1759143760862,0.5554,4115.3,4115.2,0.9913]
[1759143761266,0.9926,4115.3,4115.2,0.9913]
[1759143761659,1.2025,4115.3,4115.2,0.6788]
[1759143761859,1.2025,4115.3,4115.2,0.9913]
[1759143762562,0.4356,4115.3,4114.8,4.95309409]
[1759143762767,0.1293,4115.5,4114.7,0.0243]
[1759143762768,1.20255,4114.8,4114.7,0.0243]
[1759143763065,1.20255,4114.8,4114.7,0.4773]
[1759143763260,1.20255,4114.8,4114.7,0.0243]
[1759143763460,1.20255,4114.8,4114.7,0.2713]
[1759143763764,1.20255,4114.8,4114.7,0.0243]
[1759143763966,1.20255,4114.8,4114.7,0.2713]
[1759143765572,0.87287,4114.6,4114.5,0.00238569]
[1759143765874,1.20257,4114.6,4114.5,0.24938569]
[1759143768366,1.20257,4114.6,4114.5,0.00238569]
[1759143768572,0.3297,4113.9,4113.8,0.453]
[1759143768760,0.7653,4113.9,4113.8,0.453]
[1759143768963,3.2078,4114.2,4113.9,0.74984]
[1759143769271,0.2257,4114.7,4114.6,0.4318]
[1759143769467,0.00244665,4114.7,4114.6,1.4314609]
[1759143769665,0.00244665,4114.7,4114.6,3.17675499]
[1759143769859,0.00244665,4114.7,4114.6,8.17675499]
[1759143770257,0.00244665,4114.7,4114.6,6.4314609]
[1759143770470,0.00244665,4114.7,4114.6,5.9941909]
[1759143770859,0.00244665,4114.7,4114.6,6.4314609]
[1759143771060,1.20500665,4114.7,4114.6,0.0028909]
[1759143771572,0.7653,4114.1,4114.0,1.74516205]
[1759143771774,0.87295,4113.9,4113.8,0.247]
[1759143771963,1.20265,4113.9,4113.8,0.247]
[1759143772366,1.20265,4113.9,4113.8,0.454]
[1759143772367,0.7653,4113.9,4113.8,0.454]
[1759143772569,0.7653,4113.9,4113.8,0.99335823]
[1759143772765,0.7653,4113.9,4113.8,0.68085823]
[1759143772766,1.20265,4113.9,4113.8,0.68085823]
[1759143773075,1.20265,4113.9,4113.8,0.45605823]
[1759143774267,0.7653,4113.9,4113.8,1.01905823]
[1759143775369,0.43733,4114.1,4113.8,0.68085823]
[1759143775564,0.2097,4114.0,4113.9,0.4358]
[1759143775769,0.2097,4114.0,4113.9,0.774]
[1759143775770,0.5264,4114.0,4113.9,0.774]
[1759143776273,3.2078,4114.3,4114.2,0.4358]
[1759143776573,4.1715,4114.3,4114.2,1.022]
[1759143777070,4.396,4114.3,4114.2,1.022]
[1759143777470,4.396,4114.3,4114.2,0.6838]
[1759143779269,4.396,4114.3,4114.2,1.022]
[1759143779772,3.9587,4114.3,4114.2,0.6838]
[1759143779972,3.9587,4114.3,4114.2,1.022]
[1759143780577,3.9587,4114.3,4114.2,3.20435427]
[1759143780770,0.43971665,4114.7,4114.6,0.4358]
[1759143780771,0.52884665,4114.7,4114.6,0.4358]
[1759143780975,0.52884665,4114.7,4114.6,1.022]
[1759143781876,0.00244665,4114.7,4114.6,1.45927]
[1759143782864,3.2078,4115.3,4114.6,1.45927]
[1759143782865,3.2078,4115.3,4114.6,6.022]
[1759143783067,0.5264,4115.5,4115.4,0.774]
[1759143783268,0.5264,4115.5,4115.0,5.07662026]
[1759143783269,0.87138,4115.4,4115.3,1.74462026]
[1759143783470,1.18808,4115.4,4115.3,0.248]
[1759143783877,1.19010609,4115.4,4115.3,0.248]
[1759143784070,0.43721,4115.2,4115.1,1.74462026]
[1759143784273,1.18811,4115.2,4115.1,0.248]
[1759143785175,0.43726,4114.7,4114.6,1.74462026]
[1759143785477,1.32308,4114.5,4114.4,1.74462026]
[1759143785779,1.32308,4114.5,4114.4,0.248]
[1759143786177,1.18819,4114.4,4114.3,1.74462026]
[1759143786378,1.18819,4114.4,4114.3,0.248]
[1759143786675,0.1349,4114.5,4114.0,3.2078]
[1759143786676,0.7509,4114.1,4114.0,3.2078]
[1759143786877,0.7509,4114.1,4114.0,3.4558]
[1759143788580,0.7509,4114.1,4114.0,3.2078]
[1759143788879,0.7509,4114.1,4114.0,3.4558]
[1759143789080,0.7509,4114.1,4114.0,3.2078]
[1759143789280,0.7509,4114.1,4114.0,3.4558]
[1759143789479,0.7509,4114.1,4114.0,3.2078]
[1759143789686,0.7509,4113.9,4113.8,0.00205823]
[1759143789874,0.7509,4113.9,4113.8,0.25005823]
[1759143790076,0.7509,4113.9,4113.8,0.00205823]
[1759143790273,5.7509,4113.9,4113.8,0.00205823]
[1759143790583,5.7509,4113.9,4113.8,0.25005823]
[1759143792075,5.7509,4113.9,4113.4,0.0243]
[1759143792274,1.32319,4113.5,4113.4,0.0243]
[1759143792676,0.8858,4113.5,4113.2,0.248]
[1759143792979,0.7509,4113.3,4113.2,0.248]
[1759143793181,0.7509,4113.3,4113.2,0.25018656]
[1759143793380,3.9587,4113.3,4113.2,0.25018656]
[1759143793782,3.9587,4113.3,4113.2,0.00218656]
[1759143795378,4.39611,4113.3,4113.2,0.00218656]
[1759143799979,4.39611,4113.3,4113.2,0.42988656]
[1759143800181,4.39611,4113.3,4113.2,0.00218656]
[1759143806793,4.39611,4113.3,4113.2,0.21418656]
[1759143807288,4.39611,4113.3,4113.2,0.00218656]
[1759143808088,4.39611,4113.3,4113.2,0.21418656]
[1759143808483,4.39611,4113.3,4113.2,0.75398656]
[1759143808887,4.17161,4113.3,4113.2,5.75398656]
[1759143809191,3.2078,4113.3,4113.2,6.19140656]
[1759143809789,3.2078,4113.3,4113.2,5.75398656]
[1759143810694,3.2078,4113.3,4113.2,6.19140656]
[1759143811083,3.2078,4113.3,4113.2,5.75398656]
[1759143811597,0.3253,4113.6,4113.5,0.4351]
[1759143811783,0.3253,4113.6,4113.5,0.9998]
[1759143811989,0.76267,4113.6,4113.5,0.9998]
[1759143812294,0.98667,4113.6,4113.5,0.9998]
[1759143812691,1.19437,4113.6,4113.5,0.46]
[1759143812897,1.19437,4113.6,4113.5,0.248]
[1759143813192,1.19441,4113.3,4113.2,0.75398656]
[1759143813493,1.19441,4113.3,4113.2,1.00198656]
[1759143813696,0.76271,4113.3,4113.2,1.00198656]
[1759143813892,0.5493,4113.3,4113.2,1.43940656]
[1759143814086,0.5493,4113.3,4113.2,1.00198656]
[1759143814291,0.4374,4113.4,4113.2,1.00198656]
[1759143814600,0.9867,4113.4,4113.3,0.7518]
[1759143814784,0.3253,4113.4,4113.3,0.7518]
[1759143814983,0.43739,4113.5,4113.3,0.7518]
[1759143815191,0.3253,4113.6,4113.4,0.3167]
[1759143815392,0.5493,4113.6,4113.5,0.7518]